Cogmind - Beta 16 @@@ ROGUE MODE // 2025.10.28 @ 22:13:09 Player: Bikerider58 Result: Escaped! Performance ------------- Evolutions (9) 4500 Regions Visited (30) 6000 Robots Destroyed (200) 1000 Value Destroyed (6540) 6540 Prototype IDs (84) 1680 Alien Tech Used (1) 200 Bonus (8836) 8836 TOTAL SCORE: 28756 Bonus ------- Triggered High Security 500 High Alert Combat Kills 1271 Follower Combat Kills 766 Aligned with FarCom 300 Met Data Miner 300 Destroyed Z-Imprinter 1000 Met Zhirov 300 Met Warlord at Base 500 MAIN.C Attacked Warlord 500 Warlord Defense Kills 1380 Win 3000 Friendly Fire -981 Cogmind --------- Core Integrity 1349/1600 Matter 114/300 Energy 233/295 System Corruption 7% Temperature Cool (30) Movement Hovering (34) Location To Epsilon Eridani Parts ------- > --- POWER (3) -------- Light Antimatter Reactor Compact Particle Reactor Light Quantum Reactor > --- PROPULSION (9) --- Cooled Gravmag System Cooled Gravmag System Improved Antigrav System Improved Antigrav System Improved Gyrokinetic Inverter Antigrav Array Antigrav Array > --- UTILITY (11) ----- Experimental Heat Sink Medium Storage Unit Medium Storage Unit Experimental Optical Array Seismic Detector Weapon Mount Advanced Target Analyzer Improved Utility Shielding Improved Utility Shielding Graphene Brace Advanced Hacking Suite > --- WEAPON (2) ------- Hypervelocity Mass Driver Hypervelocity Mass Driver > --- INVENTORY (10) --- Quantum Reactor Combat Gravmag System Improved Antigrav System Improved Antigrav System Stasis Canceller Transdimensional Reconstructor Vortex Cannon (26) Enhanced Nova Cannon Fusion Bomb Launcher CR-A16's Pointy Stick Peak State ------------ > --- POWER ------------ Light Antimatter Reactor Compact Particle Reactor Light Quantum Reactor > --- PROPULSION ------- Cooled Gravmag System Cooled Gravmag System Combat Gravmag System Improved Gyrokinetic Inverter Antigrav Array Antigrav Array Cooled Linear Gravjet > --- UTILITY ---------- Advanced Heat Sink Experimental Heat Sink Medium Storage Unit Medium Storage Unit Zionite Metafield Generator Experimental Optical Array Advanced Target Analyzer Advanced Recoil Stabilizer Experimental ECM Suite Graphene Brace Advanced Hacking Suite > --- WEAPON ----------- Enhanced Nova Cannon Hypervelocity Mass Driver > --- INVENTORY -------- Quantum Reactor Improved Antigrav System Stasis Canceller Transdimensional Reconstructor Vortex Cannon Enhanced Nova Cannon Hypervelocity Mass Driver Hypervelocity Mass Driver Fusion Bomb Launcher CR-A16's Pointy Stick [Rating: 182] Favorites ----------- Power Compact Particle Reactor Engine Heavy Ion Engine Power Core Light Nuclear Core Reactor Compact Particle Reactor Propulsion Cooled Gravmag System Treads Light Treads Leg Improved Aluminum Leg Wheel Compact Wheel Hover Unit Cooled Gravmag System Flight Unit Flying Fortress v7 Utility Experimental Heat Sink Device Experimental Heat Sink Storage Medium Storage Unit Processor Improved Targeting Computer Hackware Hacking Suite Protection Improved Medium Armor Plating Weapon Zionite Phaser-S Energy Gun Zionite Phaser-S Energy Cannon Advanced Beam Cannon Ballistic Gun Helical Railgun Ballistic Cannon Hypervelocity Mass Driver Launcher Heavy Missile Launcher Impact Weapon Powered Hammer Special Melee Weapon Advanced Datajack Build | -11 -10 -9 -9 -9 -8 -8 -7 -7 -7 -7 -7 -6 -6 -6 -6 -6 -5 -5 -5 -5 -5 -4 -4 -4 -4 -4 -3 -3 -2 -1 ------- Run | Yrd Mat Mat Min Exi Min Mat Fac Low Low Zio Dee Pro Fac Low Low Dat Pro Fac Upp Upp War Pro Fac Upp Upp Zhi Pro Res Res Acc Slots Evolved 18 | . . 2 . . . 2 2 . . . . . 2 . . . . 2 . . . . 2 . . . . 2 2 2 Power 2 | . . . . . . . . . . . . . . . . . . 1 . . . . 1 . . . . . . . Propulsion 7 | . . 1 . . . 1 . . . . . . 1 . . . . 1 . . . . 1 . . . . 1 1 . Utility 9 | . . 1 . . . 1 2 . . . . . 1 . . . . . . . . . . . . . . 1 1 2 Weapon . | . . . . . . . . . . . . . . . . . . . . . . . . . . . . . . . Parts Attached 199 | 7 1 21 3 3 . 9 15 1 8 2 18 . 15 4 . . . 20 1 3 19 1 4 . . 4 1 11 6 22 Power 17 | 1 . 2 . 1 . . 1 . . . 1 . . 1 . . . 2 . 1 2 . . . . 1 . 2 . 2 Engine 5 | 1 . 2 . 1 . . . . . . . . . . . . . . . 1 . . . . . . . . . . Core 2 | . . . . . . . 1 . . . . . . . . . . 1 . . . . . . . . . . . . Reactor 10 | . . . . . . . . . . . 1 . . 1 . . . 1 . . 2 . . . . 1 . 2 . 2 Propulsion 55 | 2 . 9 . 1 . 5 1 . . . 2 . 7 1 . . . 12 . . 1 . 1 . . . 1 4 2 6 Treads 4 | 2 . 2 . . . . . . . . . . . . . . . . . . . . . . . . . . . . Leg 12 | . . 5 . 1 . 5 . . . . . . . . . . . . . . . . . . . . . . 1 . Wheel 1 | . . 1 . . . . . . . . . . . . . . . . . . . . . . . . . . . . Hover 33 | . . . . . . . . . . . 2 . 5 . . . . 12 . . 1 . 1 . . . 1 4 1 6 Flight 5 | . . 1 . . . . 1 . . . . . 2 1 . . . . . . . . . . . . . . . . Utility 86 | 2 1 5 2 . . 3 10 . 5 2 10 . 7 2 . . . 5 . 1 10 1 1 . . 3 . 3 2 11 Device 34 | 1 1 2 2 . . 1 4 . . 1 4 . 1 1 . . . . . 1 4 1 1 . . . . 1 2 6 Storage 8 | 1 . 2 . . . . . . . . 2 . . 1 . . . . . . . . . . . 1 . . . 1 Processor 16 | . . . . . . . 1 . 4 1 . . 4 . . . . 2 . . 3 . . . . . . . . 1 Hackware 8 | . . . . . . . 3 . . . . . . . . . . 3 . . . . . . . 1 . 1 . . Protection 20 | . . 1 . . . 2 2 . 1 . 4 . 2 . . . . . . . 3 . . . . 1 . 1 . 3 Artifact . | . . . . . . . . . . . . . . . . . . . . . . . . . . . . . . . Weapon 41 | 2 . 5 1 1 . 1 3 1 3 . 5 . 1 . . . . 1 1 1 6 . 2 . . . . 2 2 3 Energy Gun 14 | 1 . 4 . . . . . . 2 . 5 . . . . . . 1 . . . . 1 . . . . . . . Energy Cannon 9 | . . 1 . 1 . . 1 . 1 . . . . . . . . . . . 3 . . . . . . . 1 1 Ballistic Gun 5 | 1 . . . . . . . . . . . . . . . . . . . . 3 . . . . . . 1 . . Ballistic Cannon 5 | . . . 1 . . . . . . . . . . . . . . . . 1 . . . . . . . 1 . 2 Launcher 5 | . . . . . . 1 . 1 . . . . 1 . . . . . 1 . . . . . . . . . 1 . Special Weapon . | . . . . . . . . . . . . . . . . . . . . . . . . . . . . . . . Impact Weapon 2 | . . . . . . . 2 . . . . . . . . . . . . . . . . . . . . . . . Slashing Weapon . | . . . . . . . . . . . . . . . . . . . . . . . . . . . . . . . Piercing Weapon . | . . . . . . . . . . . . . . . . . . . . . . . . . . . . . . . Special Melee Weapon 1 | . . . . . . . . . . . . . . . . . . . . . . . 1 . . . . . . . Unidentified Prototypes 37 | . . 4 . . . . . . . . 13 . 2 . . . . 3 . . 9 . . . . 4 . . . 2 Parts Lost 36 | . 4 3 . . . 5 . . . . 2 . . 3 . . . . 1 . 4 . . . . . 1 . . 13 Power 4 | . 1 . . . . . . . . . . . . 1 . . . . 1 . . . . . . . . . . 1 Propulsion 11 | . 1 1 . . . 3 . . . . . . . 2 . . . . . . . . . . . . 1 . . 3 Utility 15 | . 1 1 . . . 2 . . . . . . . . . . . . . . 3 . . . . . . . . 8 Weapon 6 | . 1 1 . . . . . . . . 2 . . . . . . . . . 1 . . . . . . . . 1 Highest Loss Streak 5 | . 4 2 . . . 5 . . . . 2 . . 3 . . . . 1 . 3 . . . . . 1 . . 3 To Critical Strikes . | . . . . . . . . . . . . . . . . . . . . . . . . . . . . . . . Average Backups 11 | . 2 11 14 13 12 11 14 15 14 14 14 15 14 9 10 10 10 9 10 10 9 9 9 10 10 10 10 9 9 9 Power . | . . 1 2 1 1 1 1 1 1 1 . 1 1 . . . . . . . . 1 . . . . . . . . Propulsion 2 | . 1 6 7 6 6 3 2 2 2 3 3 4 3 . . . . . 2 2 1 1 . 1 1 1 . . 1 1 Utility 4 | . . 1 1 2 2 3 6 9 6 3 5 6 7 6 6 6 6 5 4 4 3 1 2 3 3 3 3 1 1 1 Weapon 4 | . . 3 3 3 3 3 5 3 4 7 4 4 2 2 4 4 4 3 4 4 4 5 5 5 5 5 5 5 6 5 Tool/Special . | . . . . . . . . . . . . . . . . . . . . . . . . . . . . . . . Unused Backups 43 | . . 6 . 1 . 1 8 . 2 2 6 . 1 . 1 . . 3 . . 1 . 2 . . 1 . 3 . 5 Power 5 | . . 2 . . . . 1 . . . 1 . . . . . . . . . . . . . . . . . . 1 Propulsion 9 | . . . . 1 . 1 3 . . . 1 . . . . . . 1 . . 1 . . . . . . . . 1 Utility 11 | . . 1 . . . . . . 2 1 . . 1 . 1 . . . . . . . 2 . . 1 . 1 . 1 Weapon 17 | . . 3 . . . . 4 . . 1 4 . . . . . . 2 . . . . . . . . . 2 . 1 Tool/Special 1 | . . . . . . . . . . . . . . . . . . . . . . . . . . . . . . 1 Average Slot Usage (%) 89 | . 84 96 100 100 100 95 76 76 75 75 75 76 81 93 100 100 100 98 98 98 95 87 93 94 94 92 89 97 94 88 Engine 2 | . 11 10 11 11 11 9 . . . . . . . . . . . . . 3 . . . . . . . . . . Core 1 | . . . . . . . 6 7 7 7 1 . . . . . . 1 . . . . . . . . . . . . Reactor 5 | . . . . . . . . . . . 5 7 6 6 6 6 6 9 9 5 6 5 9 10 10 10 10 13 13 11 Treads 2 | . 27 18 . . . . . . . . . . . . . . . . . . . . . . . . . . . . Leg 4 | . . 14 33 33 33 33 . . . . . . . . . . . . . . . . . . . . . . . . Hover 15 | . . . . . . . . . . . . . 4 26 26 26 26 33 35 35 35 35 36 36 36 36 36 38 34 29 Flight 2 | . . . . . . . 6 7 7 7 6 7 9 . 6 6 6 . . . . . . . . . . . . . Device 14 | . 9 16 20 22 22 17 10 7 7 2 11 15 14 19 20 20 20 9 11 11 16 18 21 21 21 17 15 18 20 17 Storage 7 | . 11 14 11 11 11 9 7 7 7 7 7 7 6 6 6 6 6 5 5 5 5 5 5 5 5 5 5 4 4 6 Processor 7 | . . . . . . . 4 7 13 27 14 7 11 6 6 6 6 6 11 11 10 5 5 5 5 5 5 4 4 6 Hackware 3 | . . . . . . . 15 23 12 . . . . . . . . 5 . . . . . . . 1 5 4 4 4 Protection 6 | . . . 1 . . 7 6 . 2 7 10 15 12 13 13 13 13 10 11 10 5 9 5 5 5 5 5 4 4 5 Energy Gun 8 | . 11 20 18 6 . . . . 5 14 12 14 12 12 13 13 13 11 10 10 3 . 2 . . . . . . . Energy Cannon 2 | . . . . 8 22 18 8 6 3 . . . . . . . . . . . . 4 5 4 5 5 5 4 3 2 Peak Build Rating 182 | 7 9 23 22 24 24 32 66 62 65 59 85 84 94 84 77 77 79 105 108 105 128 123 146 146 146 146 146 155 166 182 Average Rating 81 | 5 6 17 21 21 24 29 62 61 58 56 75 83 89 74 76 77 77 90 104 101 112 116 143 145 146 144 138 149 164 165 On Entrance 80 | . 7 1 22 20 24 24 28 65 62 54 57 84 84 84 77 77 77 77 105 98 105 103 118 146 146 146 146 138 151 166 Avg Prop Armor Cover (%) 4 | . 39 16 . . . . . . . . . . 2 1 1 1 1 1 . . 1 . . . . . . 2 2 . Naked Turns . | . . . . . . . . . . . . . . . . . . . . . . . . . . . . . . . Heaviest Build 95 | 12 12 44 38 39 39 49 44 37 44 43 50 50 51 48 39 39 39 50 52 57 91 73 88 88 88 88 87 94 95 95 Greatest Support 115 | 40 40 63 39 39 39 56 50 50 50 50 50 50 56 56 40 40 40 74 74 74 78 78 91 91 91 91 101 102 111 115 Greatest Overweight (x) 14 | 2 . 2 . . . 2 . . . . 14 . . 1 . . . 1 . . 1 . . . . . 1 . . . Average Overweight (x) . | . . . . . . . . . . . . . . . . . . . . . . . . . . . . . . . Largest Inventory Capacity 15 | 8 8 15 15 15 15 15 15 15 15 15 15 15 15 15 10 10 10 10 10 10 10 10 10 10 10 10 10 10 10 10 Average Capacity 12 | 7 7 14 15 15 15 15 15 15 15 15 15 15 15 10 10 10 10 10 10 10 10 10 10 10 10 10 10 10 10 10 Most Carried 15 | . 5 15 15 15 15 15 15 15 15 15 15 15 15 13 10 10 10 10 10 10 10 10 10 10 10 10 10 10 10 10 Average Carried 11 | . 2 12 14 14 15 14 14 15 14 14 14 15 14 9 9 10 10 9 10 10 9 9 9 10 10 9 9 9 9 9 Final Capacity 15 | 8 5 15 15 15 15 15 15 15 15 15 15 15 15 10 10 10 10 10 10 10 10 10 10 10 10 10 10 10 10 10 Final Carried 15 | . 5 13 15 15 15 15 15 15 14 15 15 15 13 10 10 10 10 10 10 10 10 10 10 10 10 10 10 10 10 10 Class Distribution -------------------- 34% | Scavenger-Mutant 32% | Mutant 15% | Scavenger-Sprinter 11% | Hacker-Mutant 5% | Commander-Mutant Dominant Class ---------------- Mutant | -10/Materials Mutant | -9/Materials Mutant | -9/Mines Mutant | -9/Exiles Mutant | -8/Mines Mutant | -8/Materials Hacker-Mutant | -7/Factory Hacker-Mutant | -7/Lower Caves Mutant | -7/Lower Caves Mutant | -7/Zion Scavenger-Mutant | -7/Deep Caves Scavenger-Mutant | -6/Proximity Caves Scavenger-Mutant | -6/Factory Mutant | -6/Lower Caves Scavenger-Mutant | -6/Lower Caves Scavenger-Mutant | -6/Data Miner Scavenger-Mutant | -5/Proximity Caves Scavenger-Mutant | -5/Factory Scavenger-Mutant | -5/Upper Caves Scavenger-Mutant | -5/Upper Caves Commander-Mutant | -5/Warlord Scavenger-Sprinter | -4/Proximity Caves Scavenger-Sprinter | -4/Factory Scavenger-Sprinter | -4/Upper Caves Scavenger-Sprinter | -4/Upper Caves Scavenger-Sprinter | -4/Zhirov Scavenger-Sprinter | -3/Proximity Caves Scavenger-Sprinter | -3/Research Scavenger-Sprinter | -2/Research Scavenger-Sprinter | -1/Access Resources | -11 -10 -9 -9 -9 -8 -8 -7 -7 -7 -7 -7 -6 -6 -6 -6 -6 -5 -5 -5 -5 -5 -4 -4 -4 -4 -4 -3 -3 -2 -1 ----------- Run | Yrd Mat Mat Min Exi Min Mat Fac Low Low Zio Dee Pro Fac Low Low Dat Pro Fac Upp Upp War Pro Fac Upp Upp Zhi Pro Res Res Acc Matter Collected 4718 | 258 109 290 10 . 30 180 180 31 149 129 408 123 230 103 . . 71 158 189 59 689 50 20 123 . 70 . 120 135 804 Remotely . | . . . . . . . . . . . . . . . . . . . . . . . . . . . . . . . Salvage Created 7009 | 112 173 1181 22 . . 641 119 57 91 . 141 146 255 164 . . 78 462 149 351 579 77 20 29 18 198 . 229 203 1514 Parts 386 | 7 9 72 4 . . 34 7 5 8 . 6 6 13 14 . . 1 15 6 6 30 6 . 7 . . . 21 14 95 Haulers Intercepted 10 | . . 5 . . . . 1 . . . . . 1 . . . . 2 . . . . . . . . . . . 1 Recyclers Shooed 7 | . . 2 . . . 1 . . . . . . 1 . . . . . . . . . . . . . . 1 . 2 Parts Field Recycled . | . . . . . . . . . . . . . . . . . . . . . . . . . . . . . . . Retrieved Matter . | . . . . . . . . . . . . . . . . . . . . . . . . . . . . . . . Parts Self-Destructed 57 | . . . . . . . . 2 5 . . 12 . 13 . . 1 . 5 6 . 6 . 6 1 . . . . . Prevented 5 | . . . . . . . . 1 . . . . . . . . . . . . . . . 1 3 . . . . . Parts Restored . | . . . . . . . . . . . . . . . . . . . . . . . . . . . . . . . Kills | -11 -10 -9 -9 -9 -8 -8 -7 -7 -7 -7 -7 -6 -6 -6 -6 -6 -5 -5 -5 -5 -5 -4 -4 -4 -4 -4 -3 -3 -2 -1 ------- Run | Yrd Mat Mat Min Exi Min Mat Fac Low Low Zio Dee Pro Fac Low Low Dat Pro Fac Upp Upp War Pro Fac Upp Upp Zhi Pro Res Res Acc Combat Hostiles Destroyed 149 | . 4 30 . . . 10 . 3 5 . 5 5 6 7 . . 1 3 5 . 18 1 . 5 . . . 3 4 34 Melee 1 | . . . . . . . . . 1 . . . . . . . . . . . . . . . . . . . . . Guns 52 | . 4 29 . . . . . . . . 1 2 3 5 . . 1 3 2 . 2 . . . . . . . . . Cannons 19 | . . . . . . 9 . . . . 1 . . . . . . . . . . 1 . . . . . 3 . 5 AOE 75 | . . 1 . . . . . 3 4 . 3 3 3 2 . . . . 3 . 16 . . 5 . . . . 4 28 Classes Destroyed 19 | 2 1 8 . . . 2 . 1 . . 2 1 . . . . . . . . 2 . . . . . . . . . Worker 10 | . . 1 . . . . . . . . . . . . . . . . . . . . 1 . . . . 1 . 7 Builder 2 | . . . . . . 1 . . . . . . . . . . . . . . . . . . . . . . . 1 Tunneler 8 | 2 . . 1 . . 2 1 . . . . . . . . . . . . . . . . . . . . . 1 1 Hauler 10 | . . 5 . . . . 1 . . . . . 1 . . . . 2 . . . . . . . . . . . 1 Recycler 9 | 1 . 2 . . . 1 . . . . . . . . . . . . . . . . . . . . . . 1 4 Minesweeper 3 | . . . . . . . . 1 . . . . . . . . . . . 2 . . . . . . . . . . Operator 3 | . . 1 . . . . . . . . . . . . . . . 1 . . . . . . . . . . . 1 Watcher 7 | . . 3 . . . . 2 . . . . . . . . . . 2 . . . . . . . . . . . . Swarmer 76 | . . 6 . . . . . 3 5 . . 3 4 7 . . . . 3 . 8 . . 5 . . . . 4 28 Saboteur 2 | . . . . . . . . . . . . . . . . . . . . . 2 . . . . . . . . . Grunt 37 | . 4 18 . . . 5 . . . . . 1 1 . . . . 1 1 . 6 . . . . . . . . . Brawler 1 | . . 1 . . . . . . . . . . . . . . . . . . . . . . . . . . . . Duelist 1 | . . 1 . . . . . . . . . . . . . . . . . . . . . . . . . . . . Protector 2 | . . . . . . . . . . . . . . . . . . . . . 2 . . . . . . . . . Sentry 10 | . . 4 . . . 3 . . . . . . . . . . 1 . 1 . . 1 . . . . . . . . Hunter 2 | . . . . . . 2 . . . . . . . . . . . . . . . . . . . . . . . . Programmer 13 | . . . . . . . . . . . . 1 1 . . . . 2 . . . . . . . . . 3 . 6 Z-Light 2 | . . . . . . . . . . . 2 . . . . . . . . . . . . . . . . . . . Decomposer 3 | . . . . . . . . . . . . . . . . . . . 1 1 . . . . 1 . . . . . Assembled 3 | . . . . . . . . . . . 3 . . . . . . . . . . . . . . . . . . . Thug 1 | . . . . . . . . . . . . . . . . . . . . . 1 . . . . . . . . . Butcher 1 | . . . . . . . . . . . . . . . . . . . . . 1 . . . . . . . . . Best Kill Streak 13 | 2 2 13 1 . . 5 1 4 4 . 2 3 4 3 . . 1 3 3 1 6 1 1 5 . . . 3 4 9 Combat Bots Only 12 | . 2 12 . . . 5 . 3 4 . 2 3 4 3 . . 1 1 3 . 6 1 . 5 . . . 3 4 8 Max Kills in Single Turn 5 | 1 1 2 1 . . 1 1 2 2 . 1 1 2 2 . . 1 1 2 1 5 1 1 3 1 . . 1 2 5 Gunslinging . | . . . . . . . . . . . . . . . . . . . . . . . . . . . . . . . Exploded 4 | . . 1 . . . . . 2 2 . 1 1 2 2 . . . . 2 . 4 . . 3 . . . . 2 4 Melee 1 | . . . . . . . . . 1 . . . . . . . . . . . . . . . . . . . . . Uniques/NPCs Destroyed 1 | . . . . . . . . . . . 1 . . . . . . . . . . . . . . . . . . . Z-Imprinter (-7/Deep Caves) Combat | -11 -10 -9 -9 -9 -8 -8 -7 -7 -7 -7 -7 -6 -6 -6 -6 -6 -5 -5 -5 -5 -5 -4 -4 -4 -4 -4 -3 -3 -2 -1 -------- Run | Yrd Mat Mat Min Exi Min Mat Fac Low Low Zio Dee Pro Fac Low Low Dat Pro Fac Upp Upp War Pro Fac Upp Upp Zhi Pro Res Res Acc Hostile Shots Fired 1015 | . 71 126 . . . 97 . 4 57 . 38 17 40 62 10 . 13 16 15 12 131 . . 13 . . 18 34 47 194 Missed 430 | . 22 39 . . . 30 . 1 31 . 26 10 20 27 8 . 6 6 5 4 41 . . 6 . . 11 21 30 86 Hits 585 | . 49 87 . . . 67 . 3 26 . 12 7 20 35 2 . 7 10 10 8 90 . . 7 . . 7 13 17 108 Melee 4 | . . 1 . . . . . . 1 . . . . 2 . . . . . . . . . . . . . . . . Projectile 581 | . 49 86 . . . 67 . 3 25 . 12 7 20 33 2 . 7 10 10 8 90 . . 7 . . 7 13 17 108 AOE 1 | . . . . . . . . . . . . . . . . . . . . . . . . . . . . . . 1 Critical Strikes 16 | . . 1 . . . 1 . . 1 . . 1 . 3 . . . . . . 3 . . . . . . . 1 5 Actively Blocked 5 | . . . . . . . . . . . . . . . . . . . . . . . . . . . . . . 5 Part Disruptions 7 | . . . . . . . . . . . . . . . . . . . . . 4 . . . . . . 1 . 2 Damage Taken 9894 | . 611 852 . . . 987 217 49 432 . 367 111 218 585 30 . 164 184 226 136 1514 . . 158 . . 88 267 362 2336 Core 942 | . 79 142 . . . 182 . 18 54 . . 17 16 47 . . . . 23 . 100 . . . . . . 13 . 251 Absorbed by Shields 426 | . . 189 . . . . . . . . . . . . . . . . . . 202 . . . . . . . . 35 Redirected to Shielding 356 | . . . . . . . . . . . 55 . . 51 . . 42 35 45 24 . . . . . . . . . 104 Ignored by Resistances 54 | . . . . . . 54 . . . . . . . . . . . . . . . . . . . . . . . . Regen/Repaired (Parts) 469 | . . . . . . . . . . . . . . . . . . 265 . . 85 . . . . . . . 13 106 Core Remaining (%) 86 | 100 68 . . . 64 66 . . . . . 87 . . . . 92 . . . . 87 . . . . 100 99 100 84 Volleys Fired 716 | 9 29 85 2 . . 43 10 12 9 4 22 11 88 21 4 . 13 56 18 22 40 4 5 12 1 5 27 47 23 94 Largest 2 | 2 2 2 1 . . 2 2 1 1 2 2 2 2 2 2 . 2 2 2 2 2 1 1 1 1 1 1 2 1 2 Hottest 176 | 60 60 130 65 . . 136 136 65 63 126 146 120 120 120 120 . 120 120 120 120 120 120 120 120 120 120 120 160 120 176 Shots Fired 1043 | 18 54 168 2 . . 85 11 12 9 5 37 17 101 41 7 . 25 74 33 44 62 4 5 12 1 5 27 51 23 110 Gun 656 | 18 54 168 2 . . . . . 1 2 32 12 98 40 7 . 25 74 30 44 46 . . . . . . 3 . . Cannon 322 | . . . . . . 84 11 9 4 3 1 . . . . . . . . . 3 4 5 8 1 5 27 48 20 89 Launcher 65 | . . . . . . 1 . 3 4 . 4 5 3 1 . . . . 3 . 13 . . 4 . . . . 3 21 Special . | . . . . . . . . . . . . . . . . . . . . . . . . . . . . . . . Kinetic 112 | 9 25 . . . . . . . . . . . . . . . . . . . 44 . . . . . . 3 . 31 Thermal 638 | 9 29 166 2 . . 84 11 9 5 5 31 6 12 20 3 . 12 18 15 22 3 4 5 8 1 5 27 48 20 58 Explosive 65 | . . . . . . 1 . 3 4 . 4 5 3 1 . . . . 3 . 13 . . 4 . . . . 3 21 Electromagnetic 2 | . . 2 . . . . . . . . . . . . . . . . . . . . . . . . . . . . Phasic 226 | . . . . . . . . . . . 2 6 86 20 4 . 13 56 15 22 2 . . . . . . . . . Robot Hit Streak 14 | 5 13 13 7 . . 9 5 7 2 . 5 6 13 5 2 . 5 9 13 14 5 6 7 1 2 7 . 3 3 8 Robot Miss Streak 12 | 2 2 12 1 . . 3 . 1 1 . 3 3 2 5 1 . 1 4 1 3 3 . . 1 . . 6 2 4 5 Penetration Max 2 | . . . . . . . . . . . . . . . . . . . . . 2 . . . . . . . . 2 Secondary Targets 8 | . . 7 . . . . . . . . . . . . . . . 1 . . . . . . . . . . . . Max Gunslinging Chain 1 | . . 1 . . . . . . . . . . . . . . . 1 . . . . . . . . . . . . Shots Hit Robots 508 | 11 35 148 2 . . 56 6 7 3 . 19 9 19 7 3 . 9 26 15 29 34 4 2 2 1 5 . 14 3 39 Core Hits 450 | 4 11 173 3 . . 21 1 6 6 . 17 8 10 7 . . 2 13 11 10 60 2 . 6 1 3 . 4 7 64 Critical Kills 14 | . . . . . . 1 . . . . . . . . . . . . . . 1 . 1 . . . . . . 11 Critical Parts Destroyed 11 | . . . . . . . 1 . . . . . . . . . . . . . 1 . . . . . . 1 . 8 Critical Strikes 27 | . . . . . . 1 1 . . . . . . . . . . 1 . 1 2 . 1 . . . . 1 . 19 Meltdown 2 | . . . . . . 1 . . . . . . . . . . . . . . . . 1 . . . . . . . Destroy 22 | . . . . . . . . . . . . . . . . . . . . . 2 . . . . . . 1 . 19 Smash 1 | . . . . . . . 1 . . . . . . . . . . . . . . . . . . . . . . . Intensify 2 | . . . . . . . . . . . . . . . . . . 1 . 1 . . . . . . . . . . Melee Attacks 33 | . . . . . . . 28 . 4 . . . . . . . . . . . . . 1 . . . . . . . Impact 32 | . . . . . . . 28 . 4 . . . . . . . . . . . . . . . . . . . . . Slashing . | . . . . . . . . . . . . . . . . . . . . . . . . . . . . . . . Piercing . | . . . . . . . . . . . . . . . . . . . . . . . . . . . . . . . Sneak Attacks 4 | . . . . . . . 3 . . . . . . . . . . . . . . . 1 . . . . . . . Combat Hostiles . | . . . . . . . . . . . . . . . . . . . . . . . . . . . . . . . Follow-up Attacks . | . . . . . . . . . . . . . . . . . . . . . . . . . . . . . . . Damage Inflicted 21919 | 124 425 2012 28 . . 1213 392 388 251 . 692 592 977 365 93 . 275 853 706 934 4264 90 45 431 41 239 . 687 662 5140 Guns 7994 | 124 418 1923 28 . . . . . . . 547 218 560 242 93 . 275 853 457 934 1313 . . . . . . 9 . . Cannons 3990 | . . . . . . 1213 41 137 . . 26 . . . . . . . . . 124 90 45 . 41 239 . 639 126 1269 Explosions 9386 | . . 37 . . . . . 251 189 . 119 374 417 123 . . . . 249 . 2827 . . 431 . . . . 536 3833 Melee 413 | . . . . . . . 351 . 62 . . . . . . . . . . . . . . . . . . . . . Ramming 136 | . 7 52 . . . . . . . . . . . . . . . . . . . . . . . . . 39 . 38 Kinetic 1951 | 61 167 . . . . . . . . . . . . . . . . . . . 1247 . . . . . . 9 . 467 Thermal 8178 | 63 251 1922 28 . . 1213 41 137 . . 507 119 296 143 93 . 143 388 226 502 124 90 45 . 41 239 . 639 126 802 Explosive 9349 | . . . . . . . . 251 189 . 119 374 417 123 . . . . 249 . 2827 . . 431 . . . . 536 3833 Electromagnetic 38 | . . 38 . . . . . . . . . . . . . . . . . . . . . . . . . . . . Impact 413 | . . . . . . . 351 . 62 . . . . . . . . . . . . . . . . . . . . . Slashing . | . . . . . . . . . . . . . . . . . . . . . . . . . . . . . . . Piercing . | . . . . . . . . . . . . . . . . . . . . . . . . . . . . . . . Phasic 1854 | . . . . . . . . . . . 66 99 264 99 . . 132 465 231 432 66 . . . . . . . . . Highest Corruption 7 | . . . . . . . 2 2 2 2 . . 1 1 1 1 1 3 3 3 4 4 . . . . . 4 . 7 Average Corruption 2 | . . . . . . . 2 2 2 2 . . 1 1 1 1 1 2 3 3 2 4 . . . . . 3 . 2 Corruption Purged . | . . . . . . . . . . . . . . . . . . . . . . . . . . . . . . . Corruption Blocked . | . . . . . . . . . . . . . . . . . . . . . . . . . . . . . . . Effects 50 | . . . . . . . 2 3 4 . . . 5 . 1 . . 1 8 6 3 3 . . . . . 9 . 5 Message Errors 17 | . . . . . . . 1 1 2 . . . 1 . . . . 1 3 3 1 2 . . . . . 1 . 1 Matter Fused 8 | . . . . . . . . . . . . . 1 . . . . . 2 2 1 1 . . . . . . . 1 Heat Flow Errors 4 | . . . . . . . 1 . . . . . . . . . . . 1 . . . . . . . . 2 . . Energy Discharges 6 | . . . . . . . . 2 . . . . . . . . . . . . . . . . . . . 3 . 1 Data Loss (minor) 6 | . . . . . . . . . . . . . 1 . 1 . . . 2 . . . . . . . . 1 . 1 Data Loss (major) 4 | . . . . . . . . . . . . . 1 . . . . . . 1 1 . . . . . . . . 1 Misfires 3 | . . . . . . . . . . . . . 1 . . . . . . . . . . . . . . 2 . . Alerts 2 | . . . . . . . . . 2 . . . . . . . . . . . . . . . . . . . . . Overload Shots 3 | . . . . . . . . . . 3 . . . . . . . . . . . . . . . . . . . . Overflow Damage 776 | . . 37 . . . 8 189 61 . . . 31 20 . . . . . 32 . 1 . 5 54 . . . 37 27 274 Projectiles 177 | . . . . . . 8 . 34 . . . . . . . . . . . . . . 5 . . . . 37 13 80 Explosions 392 | . . 37 . . . . . 27 . . . 31 20 . . . . . 32 . 1 . . 54 . . . . 14 176 Melee 207 | . . . . . . . 189 . . . . . . . . . . . . . . . . . . . . . . 18 Knockbacks 5 | . 1 . . . . . . . . . . . . . . . . . . . . . . . . . . . . 4 Impact 1 | . 1 . . . . . . . . . . . . . . . . . . . . . . . . . . . . . Kinetic 4 | . . . . . . . . . . . . . . . . . . . . . . . . . . . . . . 4 Secondary . | . . . . . . . . . . . . . . . . . . . . . . . . . . . . . . . Self-Inflicted Damage 194 | . 2 38 . . . . . . 47 . . . . . . . . . . . . . . 44 . . . 19 . 44 Shots 4 | . . 1 . . . . . . 1 . . . . . . . . . . . . . . 1 . . . . . 1 Rammed 6 | . 2 2 . . . . . . . . . . . . . . . . . . . . . . . . . 1 . 1 Targets Rammed 8 | . 2 4 . . . . . . . . . . . . . . . . . . . . . . . . . 1 . 1 Kicked 2 | . . 2 . . . . . . . . . . . . . . . . . . . . . . . . . . . . Crushed . | . . . . . . . . . . . . . . . . . . . . . . . . . . . . . . . Highest Temperature 442 | . 54 224 . . . 39 218 92 15 141 227 127 442 64 18 . 36 323 192 1 72 152 . . . 186 334 342 273 433 Average Temperature 72 | . 26 60 . . . 17 50 40 7 60 94 56 35 20 9 . 16 44 73 1 40 78 . . . 94 114 104 110 59 Received Heat Transfer 1876 | . 333 317 . . . 477 . . 84 . 117 46 15 111 . . 30 27 72 24 151 . . . . . . 18 18 36 Effects 3 | . . . . . . . . . . . . . . . . . . . . . . . . . . . . 3 . . Interference 2 | . . . . . . . . . . . . . . . . . . . . . . . . . . . . 2 . . Damage (minor) 1 | . . . . . . . . . . . . . . . . . . . . . . . . . . . . 1 . . Siege Activations . | . . . . . . . . . . . . . . . . . . . . . . . . . . . . . . . Martial Activations . | . . . . . . . . . . . . . . . . . . . . . . . . . . . . . . . Shielding Activations . | . . . . . . . . . . . . . . . . . . . . . . . . . . . . . . . Robots Disrupted . | . . . . . . . . . . . . . . . . . . . . . . . . . . . . . . . Combat Hostiles . | . . . . . . . . . . . . . . . . . . . . . . . . . . . . . . . Robots Corrupted 3 | . . . . . . . 3 . . . . . . . . . . . . . . . . . . . . . . . Combat Hostiles . | . . . . . . . . . . . . . . . . . . . . . . . . . . . . . . . Parts Fried 4 | . . . . . . . 4 . . . . . . . . . . . . . . . . . . . . . . . Impact Corruptions 5 | . . . . . . . 4 . . . . . . . . . . . . . . . . . . . . . . 1 Robots Melted 3 | . . . . . . 1 . . . . . . . . . . . . . . . . 1 . . . . . . 1 Combat Hostiles 2 | . . . . . . 1 . . . . . . . . . . . . . . . . . . . . . . . 1 Parts Melted 8 | . . 2 . . . 1 . . . . 1 . . 1 . . 1 . . . . . . . . . . . . 2 Heat Transferred 10170 | 150 575 2405 40 . . 2183 74 185 . . 544 148 370 185 111 . 185 444 296 629 111 74 37 . 37 129 . 518 111 629 Parts Sabotaged . | . . . . . . . . . . . . . . . . . . . . . . . . . . . . . . . Parts Stolen . | . . . . . . . . . . . . . . . . . . . . . . . . . . . . . . . Parts Stripped . | . . . . . . . . . . . . . . . . . . . . . . . . . . . . . . . Power Chain Reactions 1 | . . 1 . . . . . . . . . . . . . . . . . . . . . . . . . . . . Alert | -11 -10 -9 -9 -9 -8 -8 -7 -7 -7 -7 -7 -6 -6 -6 -6 -6 -5 -5 -5 -5 -5 -4 -4 -4 -4 -4 -3 -3 -2 -1 ------- Run | Yrd Mat Mat Min Exi Min Mat Fac Low Low Zio Dee Pro Fac Low Low Dat Pro Fac Upp Upp War Pro Fac Upp Upp Zhi Pro Res Res Acc Maximum Alert Level 5 | . . 2 1 . . . . . . . . . . . . . . . . . . . . . . . . 1 2 5 Low Security (%) 76 | 100 100 53 74 . 100 100 100 . . . . . 100 . . . . 100 . . . . 100 . . . . 82 31 . Level 1 6 | . . 20 25 . . . . . . . . . . . . . . . . . . . . . . . . 17 9 2 Level 2 8 | . . 25 . . . . . . . . . . . . . . . . . . . . . . . . . . 59 9 Level 3 1 | . . . . . . . . . . . . . . . . . . . . . . . . . . . . . . 10 Level 4 5 | . . . . . . . . . . . . . . . . . . . . . . . . . . . . . . 51 Level 5 . | . . . . . . . . . . . . . . . . . . . . . . . . . . . . . . 2 High Security 2 | . . . . . . . . . . . . . . . . . . . . . . . . . . . . . . 22 Max Security . | . . . . . . . . . . . . . . . . . . . . . . . . . . . . . . . Peak Influence 2321 | 5 101 594 220 . . 169 59 . . . . . 133 . . . . 61 . . . . 50 . . . . 262 678 2321 Initial 397 | . . 42 220 . . . 39 . . . . . 46 . . . . . . . . . . . . . . 150 84 397 Average 238 | 1 33 224 170 . . 60 11 . . . . . 37 . . . . 13 . . . . 17 . . . . 153 424 1426 Influence Increases 8133 | 15 211 946 5 . . 348 203 75 305 . . 225 372 265 . . 65 234 145 35 865 20 63 110 30 5 30 524 729 2308 Destroy 0b10 Robot/C 3200 | . 80 600 . . . 200 . 60 100 . . 160 120 140 . . 20 60 100 . 620 20 . 100 . . . 60 80 680 Destroy 0b10 Robot/NC 290 | 15 . 60 5 . . 20 20 5 . . . 5 5 . . . . 25 . 20 10 . 5 . . 5 . 5 10 75 Destroy Leader 464 | . 20 146 . . . 60 6 10 10 . . 30 22 20 . . . 18 . . . . . 10 . . . 10 10 92 Allied During Kill 250 | . . . . . . . . . . . . 30 . . . . . . . . 220 . . . . . . . . . Successful Hack 340 | . 6 18 . . . . 107 . . . . . 36 . . . . 31 . . . . 5 . . . . 87 8 42 Select Force Hacks 60 | . 30 30 . . . . . . . . . . . . . . . . . . . . . . . . . . . . Disable Machine 120 | . . . . . . . . . . . . . . . . . . 15 . . . . . . . . . . . 105 Destroy Structure 1084 | . . 2 . . . 8 25 . . . . . 84 . . . . 70 . . . . 8 . . . . 62 171 654 Advance Influence 150 | . . . . . . . . . . . . . . . . . . . . . . . . . . . . 150 . . Partial Spotted 270 | . . . . . . . 30 . . . . . 30 . . . . 15 . . . . . . . . . 90 30 75 Lose Combat Pursuer 1905 | . 75 90 . . . 60 15 . 195 . . . 75 105 . . 45 . 45 15 15 . 45 . 30 . 30 60 420 585 Influence Decreases 5812 | 15 110 481 456 115 . 261 290 50 186 144 . 150 345 209 71 87 65 201 148 65 298 587 31 42 49 86 30 374 216 650 Entered New Map 1935 | . . 59 346 115 . . 48 . 6 144 . . 29 39 31 87 . . 13 6 . 567 . 13 19 81 . . 66 266 Time Decay 3317 | 15 70 392 110 . . 211 242 50 180 . . 130 316 140 40 . 65 201 125 59 178 20 21 29 30 5 30 254 150 254 Search Patrol Dispatched 100 | . . . . . . . . . . . . . . . . . . . . . . . . . . . . 100 . . Lost Part 330 | . 40 30 . . . 50 . . . . . . . 30 . . . . 10 . 40 . . . . . . . . 130 Lost Ally 130 | . . . . . . . . . . . . 20 . . . . . . . . 80 . 10 . . . . 20 . . Squads Dispatched 49 | . 3 5 . . . 4 3 . . . . . 11 . . . . 4 . . . . . . . . . 3 2 14 Investigation 18 | . 2 2 . . . 1 1 . . . . . 8 . . . . 2 . . . . . . . . . . 1 1 Extermination 10 | . . . . . . . 2 . . . . . 2 . . . . 1 . . . . . . . . . 2 . 3 Reinforcement 15 | . 1 3 . . . 1 . . . . . . 1 . . . . 1 . . . . . . . . . 1 1 6 Assault 4 | . . . . . . . . . . . . . . . . . . . . . . . . . . . . . . 4 Garrison 2 | . . . . . . 2 . . . . . . . . . . . . . . . . . . . . . . . . Intercept . | . . . . . . . . . . . . . . . . . . . . . . . . . . . . . . . Searches Triggered 1 | . . . . . . . . . . . . . . . . . . . . . . . . . . . . 1 . . Data Miner Redirects 1 | . . . . . . . . . . . . . . . . . . . . . . . . . . . . . . 1 Construction Impeded 2 | . . . . . . . . . . . . . . . . . . . . . . . . . . . . . . 2 Haulers Reinforced 2 | . . . . . . . . . . . . . . . . . . . . . . . . . . . . . 1 1 Active Scanning Responses . | . . . . . . . . . . . . . . . . . . . . . . . . . . . . . . . Cargo Convoy Interrupts . | . . . . . . . . . . . . . . . . . . . . . . . . . . . . . . . Stealth | -11 -10 -9 -9 -9 -8 -8 -7 -7 -7 -7 -7 -6 -6 -6 -6 -6 -5 -5 -5 -5 -5 -4 -4 -4 -4 -4 -3 -3 -2 -1 --------- Run | Yrd Mat Mat Min Exi Min Mat Fac Low Low Zio Dee Pro Fac Low Low Dat Pro Fac Upp Upp War Pro Fac Upp Upp Zhi Pro Res Res Acc Distress Signals 27 | . 2 4 . . . . . . . . . . 2 . . . . . . . 1 . 1 . . . . 1 8 8 Communications Jammed 27 | . . . . . . . . . . . . . . . . . . 4 . . . . . . . . 3 1 14 5 Distress Signals 24 | . . . . . . . . . . . . . . . . . . 4 . . . . . . . . . 1 14 5 Times Spotted 479 | . 19 48 . . . 14 3 3 18 . 12 7 23 14 2 . 3 10 6 1 130 2 6 5 3 . 4 12 51 83 Peak Tracking Total 49 | . 14 10 . . . 5 2 3 9 . 4 4 5 8 2 . 3 3 3 1 49 1 5 5 3 . 2 4 15 15 Tactical Retreats 52 | . 1 4 . . . 2 1 . 6 . . . 5 4 . . 1 . 2 1 1 . 1 . 1 . 1 3 5 13 ECM-based Alert Blocks 1 | . . . . . . . . . . . . . 1 . . . . . . . . . . . . . . . . . Traps | -11 -10 -9 -9 -9 -8 -8 -7 -7 -7 -7 -7 -6 -6 -6 -6 -6 -5 -5 -5 -5 -5 -4 -4 -4 -4 -4 -3 -3 -2 -1 ------- Run | Yrd Mat Mat Min Exi Min Mat Fac Low Low Zio Dee Pro Fac Low Low Dat Pro Fac Upp Upp War Pro Fac Upp Upp Zhi Pro Res Res Acc Traps Triggered 10 | . 1 . . . . 2 3 . . . . . . . . . . . . . 1 . . . . . . 1 . 2 Indirectly . | . . . . . . . . . . . . . . . . . . . . . . . . . . . . . . . Trap Hack Attempts . | . . . . . . . . . . . . . . . . . . . . . . . . . . . . . . . Triggered . | . . . . . . . . . . . . . . . . . . . . . . . . . . . . . . . Disarmed . | . . . . . . . . . . . . . . . . . . . . . . . . . . . . . . . Reprogrammed . | . . . . . . . . . . . . . . . . . . . . . . . . . . . . . . . Reused . | . . . . . . . . . . . . . . . . . . . . . . . . . . . . . . . Traps Extracted . | . . . . . . . . . . . . . . . . . . . . . . . . . . . . . . . Installed . | . . . . . . . . . . . . . . . . . . . . . . . . . . . . . . . Triggered . | . . . . . . . . . . . . . . . . . . . . . . . . . . . . . . . Machines | -11 -10 -9 -9 -9 -8 -8 -7 -7 -7 -7 -7 -6 -6 -6 -6 -6 -5 -5 -5 -5 -5 -4 -4 -4 -4 -4 -3 -3 -2 -1 ---------- Run | Yrd Mat Mat Min Exi Min Mat Fac Low Low Zio Dee Pro Fac Low Low Dat Pro Fac Upp Upp War Pro Fac Upp Upp Zhi Pro Res Res Acc Machines Disabled 12 | . . . . . . . . . . 3 1 . . . . . . 1 . . . . . . . . . . . 7 Max in Single Turn 1 | . . . . . . . . . . 1 1 . . . . . . 1 . . . . . . . . . . . 1 Garrison Access 7 | . . . . . . . 3 . . . . . 2 . . . . 1 . . . . . . . . . 1 . . Energy Cycler 1 | . . . . . . . . . . . . . . . . . . . . . . . . . . . . . . 1 Machines Repaired . | . . . . . . . . . . . . . . . . . . . . . . . . . . . . . . . Machines Dismantled . | . . . . . . . . . . . . . . . . . . . . . . . . . . . . . . . Machines Sabotaged . | . . . . . . . . . . . . . . . . . . . . . . . . . . . . . . . Overloaded Fab Kills . | . . . . . . . . . . . . . . . . . . . . . . . . . . . . . . . Hacking | -11 -10 -9 -9 -9 -8 -8 -7 -7 -7 -7 -7 -6 -6 -6 -6 -6 -5 -5 -5 -5 -5 -4 -4 -4 -4 -4 -3 -3 -2 -1 --------- Run | Yrd Mat Mat Min Exi Min Mat Fac Low Low Zio Dee Pro Fac Low Low Dat Pro Fac Upp Upp War Pro Fac Upp Upp Zhi Pro Res Res Acc Machines Accessed 113 | . 2 6 . 2 . 1 24 . 1 . . . 20 1 1 4 . 16 . 1 4 . 6 . . 4 . 12 4 4 Terminals 43 | . 1 4 . . . 1 11 . . . . . 6 . . . . 6 . . . . 4 . . . . 6 1 3 Fabricators 9 | . . . . . . . 2 . . . . . 4 . . . . 2 . . . . . . . . . 1 . . Repair Stations 6 | . . . . . . . 1 . . . . . 1 . . . . 1 . . . . . . . . . 1 1 1 Recycling Units 13 | . 1 1 . . . . 4 . . . . . 3 . . . . 3 . . . . 1 . . . . . . . Scanalyzers 11 | . . 1 . . . . 3 . . . . . 3 . . . . 2 . . . . . . . . . 2 . . Garrison Access 13 | . . . . . . . 3 . . . . . 3 . . . . 2 . . . . 1 . . . . 2 2 . Total Hacks 299 | . 5 19 . 2 . 2 76 . 1 . . . 39 1 1 25 . 49 . 1 7 . 14 . . 17 . 26 8 6 Successful 177 | . 4 11 . 2 . 1 43 . 1 . . . 12 1 1 25 . 30 . 1 7 . 4 . . 17 . 11 3 3 Failed 120 | . 1 8 . . . 1 32 . . . . . 27 . . . . 18 . . . . 10 . . . . 15 5 3 Catastrophic 24 | . 1 1 . . . . 4 . . . . . 3 . . . . 2 . . . . 2 . . . . 7 3 1 Database Lockouts 2 | . . . . . . . 1 . . . . . . . . . . 1 . . . . . . . . . . . . Manual 99 | . 5 7 . 1 . 2 25 . . 1 . . 21 . . . . 16 . . 1 . 5 . . . . 8 4 3 Terminals 125 | . 4 12 . . . 2 48 . . . . . 14 . . . . 17 . . . . 11 . . . . 9 3 5 Fabricators 27 | . . . . . . . 4 . . . . . 9 . . . . 9 . . . . . . . . . 5 . . Repair Stations 12 | . . . . . . . 2 . . . . . 2 . . . . 4 . . . . . . . . . 1 2 1 Recycling Units 17 | . 1 1 . . . . 6 . . . . . 3 . . . . 5 . . . . 1 . . . . . . . Scanalyzers 37 | . . 6 . . . . 10 . . . . . 6 . . . . 10 . . . . . . . . . 5 . . Garrison Access 26 | . . . . . . . 6 . . . . . 5 . . . . 4 . . . . 2 . . . . 6 3 . Terminal Hacks 83 | . . 4 . 2 . . 17 . 1 . . . . 1 1 25 . 3 . 1 7 . 1 . . 17 . . 2 1 Record 25 | . . . . 1 . . . . . . . . . . . 11 . 1 . . 6 . . . . 5 . . 1 . Part Schematic 14 | . . . . . . . 1 . . . . . . . . 8 . 1 . . . . . . . 4 . . . . Robot Schematic 4 | . . . . . . . 1 . . . . . . . . 3 . . . . . . . . . . . . . . Robot Analysis 7 | . . . . . . . 3 . . . . . . . . . . . . . . . . . . 4 . . . . Prototype ID Bank 9 | . . 1 . . . . 1 . . . . . . . . 3 . . . . . . . . . 4 . . . . Open Door 5 | . . . . . . . . . 1 . . . . 1 1 . . . . 1 1 . . . . . . . . . Level Access Points 1 | . . . . . . . . . . . . . . . . . . . . . . . . . . . . . 1 . Branch Access Points 2 | . . 1 . . . . 1 . . . . . . . . . . . . . . . . . . . . . . . Terminal Index 1 | . . . . . . . 1 . . . . . . . . . . . . . . . . . . . . . . . Fabricator Index 1 | . . . . . . . 1 . . . . . . . . . . . . . . . . . . . . . . . Recycling Unit Index 1 | . . . . . . . 1 . . . . . . . . . . . . . . . . . . . . . . . Dispatch Records 1 | . . . . . . . 1 . . . . . . . . . . . . . . . . . . . . . . . Maintenance Status 1 | . . . . . . . 1 . . . . . . . . . . . . . . . . . . . . . . . Patrol Status 1 | . . 1 . . . . . . . . . . . . . . . . . . . . . . . . . . . . Recall Investigation 1 | . . . . . . . 1 . . . . . . . . . . . . . . . . . . . . . . . Hauler Manifests 3 | . . 1 . . . . 1 . . . . . . . . . . 1 . . . . . . . . . . . . Registered Components 1 | . . . . . . . 1 . . . . . . . . . . . . . . . . . . . . . . . Registered Prototypes 1 | . . . . . . . 1 . . . . . . . . . . . . . . . . . . . . . . . Zone Layout 3 | . . . . . . . 1 . . . . . . . . . . . . . . . 1 . . . . . . 1 Proto ID Catalog 1 | . . . . 1 . . . . . . . . . . . . . . . . . . . . . . . . . . Fabricator Hacks 12 | . . . . . . . 2 . . . . . 3 . . . . 4 . . . . . . . . . 3 . . Network Status 1 | . . . . . . . . . . . . . 1 . . . . . . . . . . . . . . . . . Load Schematic 6 | . . . . . . . 1 . . . . . 2 . . . . 2 . . . . . . . . . 1 . . Build 5 | . . . . . . . 1 . . . . . . . . . . 2 . . . . . . . . . 2 . . Repair Station Hacks 2 | . . . . . . . . . . . . . . . . . . 2 . . . . . . . . . . . . Scan Component 1 | . . . . . . . . . . . . . . . . . . 1 . . . . . . . . . . . . Repair 1 | . . . . . . . . . . . . . . . . . . 1 . . . . . . . . . . . . Recycling Unit Hacks 9 | . . . . . . . 4 . . . . . 2 . . . . 2 . . . . 1 . . . . . . . Retrieve Components 9 | . . . . . . . 4 . . . . . 2 . . . . 2 . . . . 1 . . . . . . . Scanalyzer 23 | . . 4 . . . . 6 . . . . . . . . . . 9 . . . . . . . . . 4 . . Insert Component 7 | . . 1 . . . . 3 . . . . . . . . . . 2 . . . . . . . . . 1 . . Analyze 5 | . . . . . . . 2 . . . . . . . . . . 3 . . . . . . . . . . . . Retrieve Study 11 | . . 3 . . . . 1 . . . . . . . . . . 4 . . . . . . . . . 3 . . Garrison Access Hacks 7 | . . . . . . . 3 . . . . . 2 . . . . 1 . . . . . . . . . 1 . . Seal Access 7 | . . . . . . . 3 . . . . . 2 . . . . 1 . . . . . . . . . 1 . . Unauthorized Hacks 41 | . 4 3 . . . 1 11 . . . . . 5 . . . . 9 . . . . 2 . . . . 3 1 2 Terminals 30 | . 3 2 . . . 1 10 . . . . . 3 . . . . 5 . . . . 2 . . . . 3 . 1 Track 1 | . . . . . . . . . . . . . . . . . . 1 . . . . . . . . . . . . Assimilate 5 | . . . . . . . . . . . . . . . . . . 2 . . . . 1 . . . . 2 . . Botnet 14 | . 1 . . . . . 5 . . . . . 3 . . . . 2 . . . . 1 . . . . 1 . 1 Operators 1 | . 1 . . . . . . . . . . . . . . . . . . . . . . . . . . . . . Skim 9 | . 1 2 . . . 1 5 . . . . . . . . . . . . . . . . . . . . . . . Fabricators 5 | . . . . . . . 1 . . . . . 1 . . . . 3 . . . . . . . . . . . . Prioritize 2 | . . . . . . . . . . . . . . . . . . 2 . . . . . . . . . . . . Recompile 3 | . . . . . . . 1 . . . . . 1 . . . . 1 . . . . . . . . . . . . Repair Stations 4 | . . . . . . . . . . . . . 1 . . . . 1 . . . . . . . . . . 1 1 Patch 4 | . . . . . . . . . . . . . 1 . . . . 1 . . . . . . . . . . 1 1 Recycling Units 2 | . 1 1 . . . . . . . . . . . . . . . . . . . . . . . . . . . . Tunnel 2 | . 1 1 . . . . . . . . . . . . . . . . . . . . . . . . . . . . Scanalyzers . | . . . . . . . . . . . . . . . . . . . . . . . . . . . . . . . Garrison Access . | . . . . . . . . . . . . . . . . . . . . . . . . . . . . . . . Data Cores Recovered . | . . . . . . . . . . . . . . . . . . . . . . . . . . . . . . . Used . | . . . . . . . . . . . . . . . . . . . . . . . . . . . . . . . Hacking Detections 72 | . 1 4 . . . 1 18 . . . . . 14 . . . . 11 . . . . 5 . . . . 11 4 3 Full Trace Events 7 | . . 1 . . . . . . . . . . 6 . . . . . . . . . . . . . . . . . Feedback Events . | . . . . . . . . . . . . . . . . . . . . . . . . . . . . . . . Feedback Blocked . | . . . . . . . . . . . . . . . . . . . . . . . . . . . . . . . Robot Schematics Acquired 4 | . . . . . . . 1 . . . . . . . . 3 . . . . . . . . . . . . . . Robots Built . | . . . . . . . . . . . . . . . . . . . . . . . . . . . . . . . Authchips . | . . . . . . . . . . . . . . . . . . . . . . . . . . . . . . . Time . | . . . . . . . . . . . . . . . . . . . . . . . . . . . . . . . Total Robot Build Rating . | . . . . . . . . . . . . . . . . . . . . . . . . . . . . . . . Part Schematics Acquired 18 | . . . . . . . 3 . . . . . . . . 8 . 3 . . . . . . . 4 . . . . Parts Built 9 | . . . . . . . 2 . . . . . . . . . . 4 . . . . . . . . . 3 . . Authchips 2 | . . . . . . . . . . . . . . . . . . 1 . . . . . . . . . 1 . . Time 362 | . . . . . . . 42 . . . . . . . . . . 192 . . . . . . . . . 128 . . Total Part Build Rating 62 | . . . . . . . 8 . . . . . . . . . . 30 . . . . . . . . . 24 . . Part Studies Acquired 10 | . . 3 . . . . 1 . . . . . . . . . . 4 . . . . . . . . . 2 . . Parts Repaired 1 | . . . . . . . . . . . . . . . . . . 1 . . . . . . . . . . . . Time 44 | . . . . . . . . . . . . . . . . . . 44 . . . . . . . . . . . . Parts Recycled . | . . . . . . . . . . . . . . . . . . . . . . . . . . . . . . . Recycled Matter . | . . . . . . . . . . . . . . . . . . . . . . . . . . . . . . . Retrieved Matter . | . . . . . . . . . . . . . . . . . . . . . . . . . . . . . . . Retrieved Components 17 | . . . . . . . 8 . . . . . 5 . . . . 3 . . . . 1 . . . . . . . Parts Scanalyzed 6 | . . 1 . . . . 2 . . . . . . . . . . 2 . . . . . . . . . 1 . . Part Schematics Acquired 4 | . . . . . . . 2 . . . . . . . . . . 2 . . . . . . . . . . . . Parts Damaged 2 | . . . . . . . 1 . . . . . . . . . . . . . . . . . . . . 1 . . Bothacking | -11 -10 -9 -9 -9 -8 -8 -7 -7 -7 -7 -7 -6 -6 -6 -6 -6 -5 -5 -5 -5 -5 -4 -4 -4 -4 -4 -3 -3 -2 -1 ------------ Run | Yrd Mat Mat Min Exi Min Mat Fac Low Low Zio Dee Pro Fac Low Low Dat Pro Fac Upp Upp War Pro Fac Upp Upp Zhi Pro Res Res Acc Used RIF Installer . | . . . . . . . . . . . . . . . . . . . . . . . . . . . . . . . Robots Hacked 1 | . . . . . . . . . . . . . . . . . . . . . . . 1 . . . . . . . Non-combat 1 | . . . . . . . . . . . . . . . . . . . . . . . 1 . . . . . . . Combat . | . . . . . . . . . . . . . . . . . . . . . . . . . . . . . . . Robot Hacks Applied 1 | . . . . . . . . . . . . . . . . . . . . . . . 1 . . . . . . . find_chute 1 | . . . . . . . . . . . . . . . . . . . . . . . 1 . . . . . . . Relay Couplers Released . | . . . . . . . . . . . . . . . . . . . . . . . . . . . . . . . Fabnet Peak Effective % . | . . . . . . . . . . . . . . . . . . . . . . . . . . . . . . . Robots Rewired 5 | . . . . . . . . . . . . . . . . . . . . . 5 . . . . . . . . . Allies Hacked . | . . . . . . . . . . . . . . . . . . . . . . . . . . . . . . . Hacks Repelled . | . . . . . . . . . . . . . . . . . . . . . . . . . . . . . . . Allies | -11 -10 -9 -9 -9 -8 -8 -7 -7 -7 -7 -7 -6 -6 -6 -6 -6 -5 -5 -5 -5 -5 -4 -4 -4 -4 -4 -3 -3 -2 -1 -------- Run | Yrd Mat Mat Min Exi Min Mat Fac Low Low Zio Dee Pro Fac Low Low Dat Pro Fac Upp Upp War Pro Fac Upp Upp Zhi Pro Res Res Acc Total Allies 17 | . . . 1 . . . . . . 6 . . . . . . . 2 . . 5 . 1 . . . . 2 . . Largest Group 6 | . . . 1 1 . . . . . 6 6 1 . . . . . 2 . . 5 . 1 . . . . 1 . . Highest-Rated Group 282 | . . . 31 31 . . . . . 282 282 96 . . . . . 20 . . 260 . 10 . . . . 45 . . Highest-Rated Ally 96 | . . . 31 31 . . . . . 96 96 96 . . . . . 10 . . 68 . 10 . . . . 45 . . Total Orders 2 | . . . . . . . . . . . . . . . . . . . . . 2 . . . . . . . . . STAY 1 | . . . . . . . . . . . . . . . . . . . . . 1 . . . . . . . . . FOLLOW 1 | . . . . . . . . . . . . . . . . . . . . . 1 . . . . . . . . . Ally Attacks 117 | . . . . . . . . . . . 44 11 . . . . . . . . 62 . . . . . . . . . Total Damage 3460 | . . . . . . . . . . . 727 288 . . . . . . . . 2445 . . . . . . . . . Kills 29 | . . . . . . . . . . . 8 4 . . . . . . . . 17 . . . . . . . . . Allies Corrupted 1 | . . . . . . . . . . . . . . . . . . . . . 1 . . . . . . . . . Allies Melted 1 | . . . . . . . . . . . . . . . . . . . . 1 . . . . . . . . . . Intel | -11 -10 -9 -9 -9 -8 -8 -7 -7 -7 -7 -7 -6 -6 -6 -6 -6 -5 -5 -5 -5 -5 -4 -4 -4 -4 -4 -3 -3 -2 -1 ------- Run | Yrd Mat Mat Min Exi Min Mat Fac Low Low Zio Dee Pro Fac Low Low Dat Pro Fac Upp Upp War Pro Fac Upp Upp Zhi Pro Res Res Acc Active Infowar (turns) 8948 | 9 130 597 207 284 16 49 850 233 359 60 1 . 1056 283 88 39 220 530 375 390 1089 87 99 83 68 60 128 548 308 702 Optics 3947 | . . . . . . . . . . . . . . . . . . 10 375 390 1089 87 99 83 68 60 128 548 308 702 IFF 1435 | . . . . . . . . . . . . . . 263 88 39 201 2 301 390 151 . . . . . . . . . Terrain 57 | . . . . . . . 57 . . . . . . . . . . . . . . . . . . . . . . . Seismic 2079 | 9 130 597 207 284 16 49 87 233 326 60 . . . . . . . . . . . . . . . . . . . 81 Decoding 224 | . . . . . . . . . . . . . . . . . . 224 . . . . . . . . . . . . Machine Analysis 1570 | . . . . . . . 652 233 191 . . . 494 . . . . . . . . . . . . . . . . . Jamming 3884 | . . . . . . . 195 . . . 1 . 1056 283 88 39 220 530 3 . . 86 99 83 68 58 128 548 308 91 ECM 12 | . . . . . . . . . . . . . 12 . . . . . . . . . . . . . . . . . Robot Analysis Total 7 | . . . . . . . 3 . . . . . . . . . . . . . . . . . . 4 . . . . Derelict Logs Recovered 14 | . . . . . . . . 2 . 2 . . . 1 . . 3 . 2 1 . 2 . . 1 . . . . . Drone Launches . | . . . . . . . . . . . . . . . . . . . . . . . . . . . . . . . Drone Recoveries . | . . . . . . . . . . . . . . . . . . . . . . . . . . . . . . . Decoded 0b10 Intel 3 | . . . . . . . . . . . . . . . . . . 3 . . . . . . . . . . . . Traps 2 | . . . . . . . . . . . . . . . . . . 2 . . . . . . . . . . . . Emergency Access 1 | . . . . . . . . . . . . . . . . . . 1 . . . . . . . . . . . . Exploration | -11 -10 -9 -9 -9 -8 -8 -7 -7 -7 -7 -7 -6 -6 -6 -6 -6 -5 -5 -5 -5 -5 -4 -4 -4 -4 -4 -3 -3 -2 -1 ------------- Run | Yrd Mat Mat Min Exi Min Mat Fac Low Low Zio Dee Pro Fac Low Low Dat Pro Fac Upp Upp War Pro Fac Upp Upp Zhi Pro Res Res Acc Turns Passed 11904 | 91 235 1217 233 284 16 603 969 233 373 449 518 263 1057 283 88 39 220 796 375 390 1089 87 99 83 68 60 128 548 308 702 Spaces Moved 16998 | 37 126 573 210 261 16 326 1499 396 562 805 710 365 1795 417 151 81 354 886 716 721 1024 296 303 274 321 164 225 1000 770 1614 Core 89 | 8 80 . . . . . . . . . 1 . . . . . . . . . . . . . . . . . . . Treads 311 | 29 46 236 . . . . . . . . . . . . . . . . . . . . . . . . . . . . Legs 1119 | . . 306 210 261 16 326 . . . . . . . . . . . . . . . . . . . . . . . . Wheels 31 | . . 31 . . . . . . . . . . . . . . . . . . . . . . . . . . . . Hover 9489 | . . . . . . . . . . . . . 172 417 151 81 354 886 716 721 1024 296 303 274 321 164 225 1000 770 1614 Flight 5959 | . . . . . . . 1499 396 562 805 709 365 1623 . . . . . . . . . . . . . . . . . Fastest Speed 17 | 50 50 105 105 105 105 111 50 50 50 50 50 50 39 44 48 48 48 36 41 41 40 23 20 20 20 20 17 17 20 20 Average Speed 47 | 145 90 131 105 105 105 122 50 50 50 50 50 50 42 48 48 48 48 43 41 41 68 23 20 20 20 20 21 24 29 24 Slowest Speed 750 | 160 160 260 105 105 105 270 50 50 50 50 750 50 50 110 48 48 48 110 41 41 114 23 20 20 20 20 77 38 41 41 Overloaded Moves 18 | . . . . . . . . . . . . . . . . . . . . . . . . . . . 14 4 . . Propulsion Burnouts . | . . . . . . . . . . . . . . . . . . . . . . . . . . . . . . . Robots Hopped 18 | . . . . . . . 4 . 1 . . 1 12 . . . . . . . . . . . . . . . . . Potential Cave-ins 9 | . . . . . . . . . . . . . . . . . . 5 . . 2 . . . . . . . . 2 Cave-ins Triggered . | . . . . . . . . . . . . . . . . . . . . . . . . . . . . . . . Exploration Rate (%) 51 | 3 27 50 44 69 14 26 40 66 64 83 69 55 55 59 15 69 62 27 86 83 90 71 17 57 64 61 49 38 34 48 Regions Visited 30 Branch Regions 20 Pre-discovered Areas 11 | . 1 1 . 1 . . . . . 1 . . . . . 1 . . . 1 . 2 . . . 3 . . . . Known Exits Taken 11 | . . 1 . . . . 1 1 . . . 1 1 . . . 1 1 . 1 . 1 . . . . 1 . 1 . Unknown Exits Taken 19 | 1 1 . 1 1 1 1 . . 1 1 1 . . 1 1 1 . . 1 . 1 . 1 1 1 1 . 1 . . Scrap Searched 32 | . . . 1 . 1 . . 2 5 3 . 2 . 1 . . 2 . 2 2 . 5 . 1 3 . 2 . . . Spaces Dug 335 | . . . . . . 7 29 1 5 . . . 68 10 1 . 9 32 3 2 . . 4 3 . . 9 26 57 69 Terrain Destroyed 1027 | . . 2 . . . 7 29 25 38 . 49 44 111 43 4 . 15 43 44 13 83 2 4 61 . . 25 32 60 293 Melee 27 | . . . . . . . 24 . 3 . . . . . . . . . . . . . . . . . . . . . Projectile 360 | . . . . . . . 5 2 2 . 4 5 80 31 4 . 15 43 13 13 13 2 4 8 . . 25 32 17 42 AOE 640 | . . 2 . . . 7 . 23 33 . 45 39 31 12 . . . . 31 . 70 . . 53 . . . . 43 251 Terrain Rammed . | . . . . . . . . . . . . . . . . . . . . . . . . . . . . . . . Walls Destroyed . | . . . . . . . . . . . . . . . . . . . . . . . . . . . . . . . Machines Disabled . | . . . . . . . . . . . . . . . . . . . . . . . . . . . . . . . Actions | -11 -10 -9 -9 -9 -8 -8 -7 -7 -7 -7 -7 -6 -6 -6 -6 -6 -5 -5 -5 -5 -5 -4 -4 -4 -4 -4 -3 -3 -2 -1 --------- Run | Yrd Mat Mat Min Exi Min Mat Fac Low Low Zio Dee Pro Fac Low Low Dat Pro Fac Upp Upp War Pro Fac Upp Upp Zhi Pro Res Res Acc Total 19612 | 53 192 866 220 271 15 443 1663 416 631 846 830 425 1977 454 159 80 377 1226 760 770 1341 311 336 287 323 185 276 1256 825 1798 Wait 1164 | 1 29 134 2 . . 45 64 6 20 21 24 49 60 7 3 . 9 223 22 23 147 2 13 . . . 21 175 19 45 Move 16934 | 36 125 572 209 260 15 325 1490 395 559 804 709 362 1773 416 150 80 353 885 715 720 1023 295 302 273 320 163 224 999 769 1613 Hop 15 | . . . . . . . 4 . 1 . . 1 9 . . . . . . . . . . . . . . . . . Pick Up 115 | . 4 23 2 2 . 8 14 . 5 3 8 . 6 2 1 . . 10 . . 4 2 4 . 1 2 1 9 2 2 Fast Attach 146 | 7 . 11 2 . . 8 7 . 6 5 20 . 8 1 . . . 14 . 3 18 1 3 . . 7 . 5 2 18 Attach 51 | . . 8 . . . 3 5 . 1 . 6 . 6 2 . . . 2 . . 2 4 2 . . . 1 4 1 4 Detach 24 | . 1 3 . . . 1 5 . 1 . 6 . 1 . . . . . . . 1 2 1 . . . 1 . . 1 Swap 128 | . 1 11 1 4 . 3 6 3 15 2 9 2 14 4 . . 2 12 5 . 8 . 1 2 . . . 4 5 14 Drop 195 | . 1 15 2 5 . 7 22 . 10 7 26 . 12 1 1 . . 24 . 2 23 1 4 . 1 8 1 12 4 6 Fire 716 | 9 29 85 2 . . 43 10 12 9 4 22 11 88 21 4 . 13 56 18 22 40 4 5 12 1 5 27 47 23 94 Melee 33 | . . . . . . . 28 . 4 . . . . . . . . . . . . . 1 . . . . . . . Ram 3 | . 1 . . . . . . . . . . . . . . . . . . . . . . . . . . 1 . 1 Kick 2 | . . 2 . . . . . . . . . . . . . . . . . . . . . . . . . . . . Crush 3 | . 1 2 . . . . . . . . . . . . . . . . . . . . . . . . . . . . Escape Stasis 8 | . . . . . . . 8 . . . . . . . . . . . . . . . . . . . . . . . Rewire 75 | . . . . . . . . . . . . . . . . . . . . . 75 . . . . . . . . . Trap . | . . . . . . . . . . . . . . . . . . . . . . . . . . . . . . . Miscellaneous . | . . . . . . . . . . . . . . . . . . . . . . . . . . . . . . . Route ------- -11/Scrapyard -10/Materials -9/Materials (discovered 2 exits: *Mat / *Min) -9/Mines (discovered 2 exits: *Exi / *Zio) -9/Exiles -8/Mines -8/Materials -7/Factory (discovered 7 exits: *Fac x4 / *Sto / *Low x2) -7/Lower Caves -7/Lower Caves (discovered 2 exits: *Fac / *Zio) -7/Zion (discovered 2 exits: [*Dee] / [*Pro]) -7/Deep Caves -6/Proximity Caves -6/Factory (discovered 3 exits: *Fac x2 / *Low) -6/Lower Caves -6/Lower Caves -6/Data Miner -5/Proximity Caves -5/Factory (discovered 5 exits: *Fac x3 / *Upp x2) -5/Upper Caves -5/Upper Caves (discovered 2 exits: *Fac / *War) -5/Warlord -4/Proximity Caves -4/Factory (discovered 2 exits: [*Upp] / Arm) -4/Upper Caves -4/Upper Caves (discovered 2 exits: Res / *Zhi) -4/Zhirov -3/Proximity Caves -3/Research (discovered 3 exits: *Res x2 / [*Qua]) -2/Research (discovered 4 exits: *Acc x3 / [*Tes]) -1/Access To Epsilon Eridani History --------- Turn | Location | Event 8 | -11/Scrapyard | Discovered new exit (range 15) 92 | -11/Scrapyard | Entered Materials 305 | -10/Materials | Discovered new exit (range 13) 306 | -10/Materials | Build established: Mutant 327 | -10/Materials | Entered another Materials area 327 | -9/Materials | Evolved 2 slots: Propulsion x1, Utility x1 347 | -9/Materials | Lost 4 parts (1p1n1u1w) 1068 | -9/Materials | Destroyed 12 combat bots 1199 | -9/Materials | Identified exit to Mines 1329 | -9/Materials | Discovered new exit (range 10) 1544 | -9/Materials | Entered Mines 1551 | -9/Mines | YI-UF0 nonchalantly dropped a Grenade Launcher on the ground 1641 | -9/Mines | Received a Mining Laser from a helpful Derelict 1704 | -9/Mines | A Derelict revealed a hidden shortcut to a safe place 1772 | -9/Mines | Deemed a non-threat by the Exiles lab entrance 1773 | -9/Mines | Discovered new exit (range 5) 1777 | -9/Mines | Entered Exiles 1777 | -9/Exiles | Accompanied by 1 ally 1804 | -9/Exiles | Met 8R-AWN 1822 | -9/Exiles | Met EX-HEX 1858 | -9/Exiles | Met EX-DEC 1875 | -9/Exiles | Learned location of Zion (-7) 1895 | -9/Exiles | Met EX-BIN 1910 | -9/Exiles | Aligned with FarCom system 1911 | -9/Exiles | Given EX-Vault access code 1936 | -9/Exiles | Opened EX-Vault 1952 | -9/Exiles | Found Flying Fortress v7 1977 | -9/Exiles | Warned to stay clear of 0b10 Research branches 2047 | -9/Exiles | Discovered new exit (range 14) 2061 | -9/Exiles | Left Exiles lab with Flying Fortress v7 2061 | -9/Exiles | Entered Mines 2069 | -8/Mines | Discovered new exit (range 9) 2077 | -8/Mines | Entered Materials 2077 | -8/Materials | Evolved 2 slots: Propulsion x1, Utility x1 2536 | -8/Materials | Garrison activated, responded to threat 2610 | -8/Materials | Lost 5 parts (3n2u) 2675 | -8/Materials | Discovered new exit (range 5) 2680 | -8/Materials | Entered Factory 2680 | -7/Factory | Evolved 2 slots: Utility x2 2886 | -7/Factory | Fabricated Transmission Jammer (x2) 3015 | -7/Factory | Identified exit to Storage 3015 | -7/Factory | Identified exit to Lower Caves 3015 | -7/Factory | Central database locked down 3075 | -7/Factory | Discovered new exit (range 11) 3219 | -7/Factory | Discovered new exit (range 13) 3297 | -7/Factory | Build established: Hacker-Mutant 3511 | -7/Factory | Learned location of 1 exit from Lower Caves 3572 | -7/Factory | Identified exit to Factory 3625 | -7/Factory | Learned location of 1 exit from Cetus 3649 | -7/Factory | Entered Lower Caves 3650 | -7/Lower Caves | Identified exit to Lower Caves 3665 | -7/Lower Caves | Learned 4 Factory zone layouts 3818 | -7/Lower Caves | Encountered a Warlord checkpoint 3865 | -7/Lower Caves | Spotted B-75 Beast 3882 | -7/Lower Caves | Entered another Lower Caves area 3981 | -7/Lower Caves | Discovered exit to Factory (range 5) 4168 | -7/Lower Caves | Attracted the attention of an 0b10 checkpoint 4246 | -7/Lower Caves | Discovered new exit (range 9) 4255 | -7/Lower Caves | Entered Zion 4275 | -7/Zion | System corruption cleaned by Quarantine Array 4314 | -7/Zion | Discovered new exit (range 15) 4326 | -7/Zion | Learned location of Warlord (-5) 4375 | -7/Zion | Build established: Mutant 4510 | -7/Zion | Given A8's code to call for help 4592 | -7/Zion | Gained Derelict followers 4599 | -7/Zion | Found CR-A16's Pointy Stick 4684 | -7/Zion | Discovered new exit (range 3) 4684 | -7/Zion | Saw the warning signs outside the Deep Caves entrance 4685 | -7/Zion | Enhanced Grunt warped into view, answering call for help 4687 | -7/Zion | Enhanced Grunt warped into view, answering call for help 4704 | -7/Zion | Entered Deep Caves 4704 | -7/Deep Caves | Accompanied by 6 allies 4706 | -7/Deep Caves | Met 5H-AD0 4771 | -7/Deep Caves | Attacked by Z-Imprinter 4782 | -7/Deep Caves | Allies destroyed Z-Imprinter 4792 | -7/Deep Caves | Found Prototype Device 4792 | -7/Deep Caves | Identified Zio. Metafield Generator 4814 | -7/Deep Caves | Found Prototype Protection 4814 | -7/Deep Caves | Identified Zio. Weapon Casing 4864 | -7/Deep Caves | Z-Facility disabled 4930 | -7/Deep Caves | Lost 3 allies 4952 | -7/Deep Caves | Found Prototype Protection 4952 | -7/Deep Caves | Identified Zio. Heavy Carapace 4997 | -7/Deep Caves | Found Zio. Weapon Casing 5079 | -7/Deep Caves | Build established: Scavenger-Mutant 5089 | -7/Deep Caves | Found Zio. Weapon Casing 5177 | -7/Deep Caves | Discovered new exit (range 6) 5222 | -7/Deep Caves | Thanked by 5H-AD0 5222 | -7/Deep Caves | Entered Proximity Caves 5222 | -6/Proximity Caves | Accompanied by 1 ally 5456 | -6/Proximity Caves | Discovered exit to Factory (range 11) 5485 | -6/Proximity Caves | Entered Factory 5485 | -6/Factory | Evolved 2 slots: Propulsion x1, Utility x1 5486 | -6/Factory | Identified exit to Lower Caves 6197 | -6/Factory | Discovered new exit (range 5) 6211 | -6/Factory | Identified exit to Factory 6389 | -6/Factory | Spotted B-75 Beast 6457 | -6/Factory | Discovered exit to Factory (range 16) 6542 | -6/Factory | Entered Lower Caves 6570 | -6/Lower Caves | Attracted the attention of an 0b10 checkpoint 6595 | -6/Lower Caves | Lost 3 parts (1p2n) 6669 | -6/Lower Caves | Learned 12 Factory zone layouts 6817 | -6/Lower Caves | Discovered new exit (range 8) 6825 | -6/Lower Caves | Entered another Lower Caves area 6849 | -6/Lower Caves | Discovered new exit (range 15) 6913 | -6/Lower Caves | Entered Data Miner 6913 | -6/Data Miner | Discovered new exit (range 6) 6923 | -6/Data Miner | Met Data Miner 6932 | -6/Data Miner | Learned location of Section 7 (-2) 6932 | -6/Data Miner | Acquired the access code to Warlord's prototype stash 6940 | -6/Data Miner | Received God Mode back door access code from Data Miner 6952 | -6/Data Miner | Entered Proximity Caves 7024 | -5/Proximity Caves | Learned Factory terminal intel 7032 | -5/Proximity Caves | Learned Factory garrison access intel 7096 | -5/Proximity Caves | Attracted the attention of an 0b10 checkpoint 7126 | -5/Proximity Caves | Discovered exit to Factory (range 5) 7172 | -5/Proximity Caves | Entered Factory 7172 | -5/Factory | Evolved 2 slots: Power x1, Propulsion x1 7173 | -5/Factory | Identified exit to Factory 7173 | -5/Factory | Identified exit to Upper Caves 7174 | -5/Factory | Loaded intel: 27 terminal locations 7175 | -5/Factory | Loaded intel: 4 garrison access locations 7255 | -5/Factory | Repaired Imp. Medium Armor Plating 7526 | -5/Factory | Central database locked down 7613 | -5/Factory | Fabricated Enh. Nova Cannon (x2) 7673 | -5/Factory | Fabricated Cmb. Gravmag System (x2) 7968 | -5/Factory | Entered Upper Caves 7979 | -5/Upper Caves | Encountered a Warlord checkpoint 8139 | -5/Upper Caves | Spotted B-75 Beast 8223 | -5/Upper Caves | Attracted the attention of an 0b10 checkpoint 8338 | -5/Upper Caves | Discovered new exit (range 9) 8343 | -5/Upper Caves | Entered another Upper Caves area 8343 | -5/Upper Caves | Discovered exit to Factory (range 16) 8344 | -5/Upper Caves | Identified exit to Warlord 8397 | -5/Upper Caves | Spotted B-75 Beast 8407 | -5/Upper Caves | Encountered a Warlord checkpoint 8489 | -5/Upper Caves | Lost 3 allies 8733 | -5/Upper Caves | Entered Warlord 8744 | -5/Warlord | Discovered new exit (range 16) 8758 | -5/Warlord | System corruption cleaned by Quarantine Array 8876 | -5/Warlord | Learned 4 Access zone layouts 8876 | -5/Warlord | Learned 4 Testing zone layouts 8876 | -5/Warlord | Learned 4 Quarantine zone layouts 8877 | -5/Warlord | Learned Armory trap positions 8877 | -5/Warlord | Learned Testing stockpile data 8877 | -5/Warlord | Learned Armory terminal intel 9016 | -5/Warlord | Warlord's base attacked by MAIN.C 9021 | -5/Warlord | Opened Warlord's prototype stash 9027 | -5/Warlord | Found Prototype Processor 9027 | -5/Warlord | Identified Exp. Armor Integrity Analyzer 9037 | -5/Warlord | Found Prototype Reactor 9037 | -5/Warlord | Identified Vortex Chain Reactor 9062 | -5/Warlord | Found Prototype Device 9062 | -5/Warlord | Identified Minesniffer Drone Bay 9109 | -5/Warlord | Met Warlord 9124 | -5/Warlord | Build established: Commander-Mutant 9167 | -5/Warlord | Found Prototype Energy Cannon 9167 | -5/Warlord | Identified Vortex Cannon 9366 | -5/Warlord | Warlord forces counterattacked 9394 | -5/Warlord | Spotted Executioner 9424 | -5/Warlord | Spotted Striker 9437 | -5/Warlord | Spotted Executioner 9438 | -5/Warlord | Spotted Striker 9448 | -5/Warlord | Spotted Executioner 9495 | -5/Warlord | Lost 12 allies 9528 | -5/Warlord | Spotted Executioner 9565 | -5/Warlord | Lost 9 allies 9691 | -5/Warlord | Warlord base infiltrated, sounded retreat 9699 | -5/Warlord | Spotted Striker 9726 | -5/Warlord | Build established: Scavenger-Mutant 9750 | -5/Warlord | Spotted Striker 9756 | -5/Warlord | Spotted Striker 9788 | -5/Warlord | Attacked by Warlord forces 9788 | -5/Warlord | Spotted VW-U6V(K) 9788 | -5/Warlord | Spotted KU-7OG(B) 9788 | -5/Warlord | Spotted 8I-UDG(B) 9788 | -5/Warlord | Spotted 16-J6I(K) 9798 | -5/Warlord | Spotted Striker 9816 | -5/Warlord | Spotted Executioner 9816 | -5/Warlord | Spotted Striker 9816 | -5/Warlord | Spotted Executioner 9822 | -5/Warlord | Lost 3 allies 9822 | -5/Warlord | Entered Proximity Caves 9850 | -4/Proximity Caves | Lost 3 parts (3u) 9862 | -4/Proximity Caves | Attracted the attention of an 0b10 checkpoint 9907 | -4/Proximity Caves | Discovered exit to Factory (range 11) 9909 | -4/Proximity Caves | Entered Factory 9909 | -4/Factory | Evolved 2 slots: Power x1, Propulsion x1 9910 | -4/Factory | Identified exit to Armory 9990 | -4/Factory | Discovered new exit (range 12) 10007 | -4/Factory | Found Imp. Powered Armor 10008 | -4/Factory | Entered Upper Caves 10086 | -4/Upper Caves | Discovered new exit (range 14) 10091 | -4/Upper Caves | Entered another Upper Caves area 10099 | -4/Upper Caves | Build established: Scavenger-Sprinter 10100 | -4/Upper Caves | Encountered a Warlord checkpoint 10135 | -4/Upper Caves | Discovered new exit (range 10) 10142 | -4/Upper Caves | Identified exit to Research 10159 | -4/Upper Caves | Entered Zhirov 10159 | -4/Zhirov | Discovered new exit (range 3) 10163 | -4/Zhirov | Met Zhirov 10167 | -4/Zhirov | Learned location of Quarantine (-3) 10167 | -4/Zhirov | Learned location of Testing (-2) 10167 | -4/Zhirov | Learned location of Command (-1) 10169 | -4/Zhirov | Zhirov requested help retrieving the SGEMP Prototype 10172 | -4/Zhirov | Found Alien Artifact 10172 | -4/Zhirov | Identified Integrated Reactor 10172 | -4/Zhirov | Installed Integrated Reactor, increased core energy generation (+10) 10210 | -4/Zhirov | Found Alien Artifact 10219 | -4/Zhirov | Entered Proximity Caves 10240 | -3/Proximity Caves | Spotted B-86 Titan 10338 | -3/Proximity Caves | Spotter reported a threat 10344 | -3/Proximity Caves | Discovered exit to Research (range 14) 10347 | -3/Proximity Caves | Entered Research 10347 | -3/Research | Evolved 2 slots: Propulsion x1, Utility x1 10362 | -3/Research | Spotted B-86 Titan 10435 | -3/Research | Found Fusion Bomb Launcher 10497 | -3/Research | Spotted B-86 Titan 10563 | -3/Research | Fabricated Hyp. Railgun? 10634 | -3/Research | Fabricated Antigrav Array? 10673 | -3/Research | Discovered new exit (range 11) 10673 | -3/Research | Spotted B-90 Cyclops 10831 | -3/Research | Discovered new exit (range 20) 10847 | -3/Research | Search patrols dispatched 10861 | -3/Research | Discovered new exit (range 16) 10895 | -3/Research | Entered another Research area 10895 | -2/Research | Warlord forces began assault on 0b10 10895 | -2/Research | Evolved 2 slots: Propulsion x1, Utility x1 10919 | -2/Research | Identified exit to Access 11005 | -2/Research | Research machine network offline 11079 | -2/Research | Spotted B-90 Cyclops 11147 | -2/Research | Discovered new exit (range 9) 11160 | -2/Research | Borebot progress halted 11203 | -2/Research | Entered Access 11203 | -1/Access | Evolved 2 slots: Utility x2 11222 | -1/Access | Energy Cycler disabled 11323 | -1/Access | Destroyed 8 combat bots 11460 | -1/Access | Lost 3 parts (2n1u) 11560 | -1/Access | Found Prototype Device 11560 | -1/Access | Identified Exp. ECM Suite 11587 | -1/Access | Spotted B-99 Colossus 11600 | -1/Access | Incoming investigation squad redirected 11744 | -1/Access | High security lockdown imminent 11782 | -1/Access | Spotted B-99 Colossus 11787 | -1/Access | Lost 3 parts (2u1w) 11824 | -1/Access | High security lockdown engaged 11830 | -1/Access | Lost 3 parts (1n2u) 11904 | -1/Access | Discovered new exit (range 6) 11905 | *** | Escaped! Last Messages --------------- 11870_ P#>PMDPGI/NTZCB9O9FJ 11874_ Acquired Imp. Antigrav System. 11875_ Acquired 2 matter. 11875_ Acquired 55 matter. 11880_ Recycling Unit disabled. 11880_ Adv. Remote Force Field tumbles out of recycling unit. 11880_ Adv. Recalibrator tumbles out of recycling unit. 11880_ Biometal Leg tumbles out of recycling unit. 11889_ HV Slug penetrates Wall. 11892_ P-80 Master suffers critical hit (Destroy). 11892_ P-80 Master destroyed. 11895_ Acquired 63 matter. 11903_ System corrupted: Energy discharge (-118). 11904_ The Access Shell folds into the floor. 11904_ EXIT=FOUND Map ----- +----------------------------------------------------+ | ????###+#### #?????????????????????##### ######## | | ????# ## #?????????????????????????? #??????? | | ????# ! ## #??????????????????????????##???????? | | ????+ #???????????????????????????????????? | | ????# ! ####???????????????????????????????????? | | ????# #??????????????????????????????????????? | | ????###!###??????????????????????????????????????? | | ??????#%#????????????????????????????????????????? | | ??????#%#????????????????????????????????????????? | | ??????#!#????????????????????????????????????????? | | ??????#%#????????????????????????????????????????? | | ??????#*#????????????????????????????????????????? | | ??????# #????????????????????????????????????????? | | ??????# #????????????????????????????????????????? | | ??????# #??????#?????BB????BB????????????????????? | | ??????# #?????# ##???BB????BB??????????????####### | | ??????#[#??#### ##????????????????????????# ! | | ????### #### ##???????????????????????# | | ????+% # #???????????????????????# | | ????# !# #???????????????????????# | | ????# # #""""""""""#????????????# | | ????+ + # #????????????# " | | ????# # # #????????????# """ | | ##### # # #????????????# """ | | + # "" #????????????# " | | ####+#### ! # "@ #????????????####### | | ?? ?# # # #??????????????????? | | ?# #######=##?# #??????????????????? | | ?# # = !#?# #??????????????????? | | ?# # ! ### ##?????????????????? | | ?# # !## #?????????????????? | | ?# # " ###"" ##?????????????????? | | ?# # """ #?#"" #??????????????????? | | ?# # """ #?#"" #??????????????????? | | ?# # " #?#T #??????????????????? | | ?# #! #?#"" #??????????????????? | | ?# # #?#"" #??????????????????? | | ##############+#####"" ##########?????????? | | w k ????? | | ????? | | #### ########+###########################+#?????? | | ?????????????????????????????????????????????????? | | ?????????????????????????????????????????????????? | | ?????????????????????????????????????????????????? | | ?????????????????????????????????????????????????? | | ?????????????????????????????????????????????????? | | ?????????????????????????????????????????????????? | | ?????????????????????????????????????????????????? | | ?????????????????????????????????????????????????? | | ?????????????????????????????????????????????????? | +----------------------------------------------------+ Best States ------------- Heat Dissipation 97 Energy Generation 83 Energy Capacity 735 Matter Stores 300 Matter Capacity 300 Sight Range 23 Terrain Scan Range 16 Terrain Scan Density 10 ECM Strength 2 Jamming Range 12 Base Temperature (-) 200 Armor Coverage 400 Resistance: KI 20 Resistance: EX 25 Resistance: EM 25 Power Shielding 66 Utility Shielding 66 Weapon Shielding 100 Point Defense Rating 160 Evasion (%) 73 Targeting Accuracy 20 Target Analysis 8 Recoil Reduction 6 Energy Filtering 30 Salvage Targeting 4 Offensive Hacking 20 Defensive Hacking 12 Authchip Count 1 Item Schematics ----------------- Imp. Airjet | -7/Factory | Scanalyzed Greatsword | -7/Factory | Hacked Cld. Airjet | -7/Factory | Scanalyzed Combat Drone Bay | -6/Data Miner | Free Lgt. Regenerative Plating | -6/Data Miner | Free Enh. Armored Leg | -6/Data Miner | Free Prc. Matter Filter | -6/Data Miner | Free Enh. Coil Gun | -6/Data Miner | Free Centrium Wheel | -6/Data Miner | Free Adv. Reaction Control System | -6/Data Miner | Free Hvy. Gauss Cannon | -6/Data Miner | Free Cmb. Gravmag System | -5/Factory | Scanalyzed Antigrav Array | -5/Factory | Hacked Enh. Nova Cannon | -5/Factory | Scanalyzed Assault Drone Bay | -4/Zhirov | Free Exp. Heat Sink | -4/Zhirov | Free Exp. Optical Array | -4/Zhirov | Free Imp. Arc Thrower | -4/Zhirov | Free Robot Schematics ------------------ H-55 Commando | -7/Factory | Hacked R-10 Processor | -6/Data Miner | Free G-50 Soldier | -6/Data Miner | Free Y-64 Sentinel | -6/Data Miner | Free Fabricated ------------ Transmission Jammer | x2 | -7/Factory | Preloaded Enh. Nova Cannon | x2 | -5/Factory | Preloaded Cmb. Gravmag System | x2 | -5/Factory | Authchip Hyp. Railgun | x2 | -3/Research | Preloaded Antigrav Array | x1 | -3/Research | Authchip Repaired ---------- Imp. Medium Armor Plating | 12% | -5/Factory Studied --------- Mni. Grenade Launcher | -9/Materials | Hacked Imp. Aluminum Leg | -9/Materials | Hacked Imp. Ion Engine | -9/Materials | Hacked Powered Hammer | -7/Factory | Hacked Cmb. Gravmag System | -5/Factory | Hacked Imp. Hover Unit | -5/Factory | Hacked Adv. Plasma Cannon | -5/Factory | Hacked Imp. Gravmag System | -5/Factory | Hacked Hyp. Mass Driver | -3/Research | Hacked Lgt. Particle Reactor | -3/Research | Hacked Alien Tech Used ----------------- Integrated Reactor Achievements -------------- DIY Cooler Deductive Reasoning Explosive Keycard Express Service Heavy Suspicion I Laugh At Your Crits Into The Breach Junior Dev Not Today, Chutes Official Business Physics Hates This One Trick Recruitment Drive Sixth Sense Sniper Suspicious Throw Away The Key Tune-up We Love MA Challenges ------------ None Game ------ Seed AbsorptionCarbideBasin Manual? 0 Play Time 05:46:20 Cumulative 167.5 hours Start 2025.10.22 @ 00:37:04 End 2025.10.28 @ 22:13:09 Sessions 19 Manual Loads 0 Difficulty Rogue Special Mode None Game No. 79 Rogue 74 Adventurer 5 Explorer 0 Win Type 0 Total 3 Types 3/0/0/0/0/0/0/0/0/0 Lore% 59 Gallery% 63 Achievement% 38 Wizard Run 0 Options --------- Layout 1 ASCII 0 Keyboard 0 Movement Numpad Keybinds 0 Fullscreen 1 Font 24/Smallcaps Map View 50x35 Zoom Use 0% Tactical HUD 1 Map Filters NONE Filters NONE Steam 1 RUN: b8784073-6e60-4405-a7c4-79d8e5a16209